bitfinex/quotes_ETHUSD_20240816
["timestamp","ask_amount","ask_price","bid_price","bid_amount"]
[1723818592409,1.5,2588.4,2588.0,3.86389]
[1723818592706,1.5,2588.4,2588.1,0.032489]
[1723818593090,1.5,2588.4,2588.1,3.896289]
[1723818593295,1.5,2588.4,2588.2,3.86368]
[1723818593614,1.5,2588.4,2588.1,0.032489]
[1723818594761,0.4183408,2588.3,2588.1,0.032489]
[1723818595148,1.5,2588.4,2588.1,0.032489]
[1723818595302,0.41836076,2588.3,2588.1,3.896249]
[1723818595514,1.5,2588.4,2588.1,3.896249]
[1723818595666,1.5,2588.4,2588.2,3.86368]
[1723818597007,1.5,2588.4,2588.1,7.759989]
[1723818597194,1.5,2588.4,2588.1,3.896229]
[1723818597400,2.267651,2588.4,2588.1,3.896229]
[1723818598203,1.5,2588.4,2588.2,3.86359]
[1723818598817,1.5,2588.4,2588.2,7.72719]
[1723818599311,1.5,2588.4,2588.3,3.86353]
[1723818599488,1.5,2588.7,2588.1,0.032489]
[1723818599681,1.5,2588.7,2588.4,3.86329]
[1723818599877,0.41842885,2588.6,2588.3,3.86353]
[1723818600081,1.5,2588.7,2588.3,3.86353]
[1723818600397,0.41830023,2588.6,2588.4,3.86329]
[1723818600591,1.5,2588.7,2588.3,3.86353]
[1723818600790,1.5,2588.7,2588.1,3.896219]
[1723818600791,2.3899,2588.5,2588.2,3.86362]
[1723818601025,6.133887,2588.7,2588.4,3.86339]
[1723818601026,1.5,2588.7,2588.4,3.86339]
[1723818601324,1.5,2588.7,2588.5,3.86315]
[1723818601506,0.41797984,2588.6,2588.5,7.72639]
[1723818601685,1.5,2588.7,2588.6,3.86309]
[1723818602021,1.5,2588.7,2588.6,7.72618]
[1723818602385,1.5,2588.7,2588.6,3.86309]
[1723818603016,1.5,2588.7,2588.1,0.032489]
[1723818603017,1.88899,2588.7,2588.1,0.032489]
[1723818603328,1.88899,2588.7,2588.3,3.86342]
[1723818603494,1.5,2588.3,2588.1,0.032489]
[1723818603693,1.5,2588.3,2588.1,3.896319]
[1723818603900,1.5,2588.3,2588.1,0.032489]
[1723818604095,0.08218861,2588.2,2588.1,0.032489]
[1723818604296,4.33349747,2588.2,2588.1,0.032489]
[1723818604517,4.75125755,2588.2,2588.1,0.032489]
[1723818604698,11.088247,2588.2,2588.1,0.032489]
[1723818605232,11.088247,2588.2,2586.8,7.80461926]
[1723818605233,1.5,2586.8,2586.6,4.66844875]
[1723818605439,1.5,2586.8,2586.6,3.86596]
[1723818605584,1.5,2586.8,2586.6,7.73193]
[1723818605778,1.5,2586.8,2586.7,3.86592]
[1723818606591,1.5,2586.8,2586.7,7.73184]
[1723818606824,1.5,2586.8,2586.7,3.86592]
[1723818607026,1.5,2586.8,2586.7,7.73184]
[1723818607327,1.5,2586.8,2586.7,3.86592]
[1723818607733,1.5,2586.8,2586.7,7.73184]
[1723818607934,1.5,2586.8,2586.7,3.86592]
[1723818608136,1.5,2586.8,2586.6,3.86595]
[1723818608485,1.5,2586.8,2586.2,19.79]
[1723818608486,3.7709,2586.8,2586.2,6.86655]
[1723818608795,3.86491,2587.4,2586.2,6.86655]
[1723818608796,3.7709,2587.1,2586.3,3.0]
[1723818608992,3.7709,2587.1,2586.8,3.8657]
[1723818609186,3.7709,2587.1,2587.0,3.86548]
[1723818609388,1.5,2587.4,2587.0,0.773116]
[1723818609592,1.5,2587.4,2586.7,3.86588]
[1723818609593,2.4269,2587.9,2587.6,3.86458]
[1723818609821,2.4269,2587.9,2587.7,3.86443]
[1723818610011,2.4269,2587.9,2587.7,3.86435]
[1723818610336,1.5,2588.0,2587.9,7.72826]
[1723818610488,2.4269,2588.3,2588.2,3.86368]
[1723818610489,3.9269,2588.3,2588.2,3.86368]
[1723818610696,1.5,2588.3,2588.1,3.8638]
[1723818610930,1.5,2588.3,2588.2,3.86368]
[1723818612108,2.2708,2589.0,2588.8,3.86269]
[1723818612310,1.5,2589.3,2589.0,3.86236]
[1723818612740,1.5,2589.3,2588.2,4.66607875]
[1723818612741,1.5,2588.7,2588.2,3.86356]
[1723818613036,1.5,2588.7,2588.2,3.86353]
[1723818613221,1.5,2588.7,2588.3,3.8635]
[1723818613424,1.5,2588.7,2588.4,3.86329]
[1723818613621,1.5,2588.7,2588.5,3.86314]
[1723818614135,1.5,2588.7,2588.6,3.86309]
[1723818614634,1.5,2588.7,2588.4,3.86334]
[1723818614934,0.38781,2588.6,2587.9,3.0]
[1723818615148,1.5,2588.1,2587.8,3.86418]
[1723818615339,1.5,2588.0,2587.7,3.86442]
[1723818616039,1.5,2588.0,2587.8,3.86423]
[1723818616209,1.5,2587.7,2587.6,3.86451]
[1723818616409,1.19105851,2588.7,2587.2,3.86507]
[1723818616410,1.5,2587.4,2587.2,3.86507]
[1723818616639,1.5,2587.4,2586.7,1.56724167]
[1723818616797,1.5,2587.4,2587.1,3.8652]
[1723818617137,1.5,2587.4,2586.9,3.86556]
[1723818617347,1.87831,2587.4,2587.1,3.86524]
[1723818617691,1.87831,2587.4,2587.0,3.86535]
[1723818617692,1.5,2587.4,2587.0,3.86535]
[1723818617811,1.5,2587.1,2587.0,3.86535]
[1723818618543,2.3281,2587.0,2586.6,3.86597]
[1723818618744,1.5,2586.8,2586.4,3.86632]
[1723818618965,1.5,2586.8,2586.2,3.86658]
[1723818618966,0.08218861,2586.7,2586.2,3.86658]
[1723818619251,0.08218861,2586.7,2585.6,3.28218875]
[1723818619252,1.5,2586.0,2585.6,3.86743]
[1723818619603,1.5,2586.0,2585.7,3.86733]
[1723818619939,1.5,2586.0,2585.6,3.86743]
[1723818619940,1.5,2586.0,2585.8,3.86725]
[1723818620141,1.5,2586.0,2585.9,3.86712]
[1723818620446,1.5,2586.0,2585.4,4.32166486]
[1723818620447,1.58218861,2586.2,2585.6,3.86747]
[1723818620618,1.81499861,2586.2,2585.6,3.86747]
[1723818620815,1.81499861,2586.2,2585.7,3.86737]
[1723818620816,1.5,2585.9,2585.7,3.86737]
[1723818621032,1.5,2585.9,2585.8,3.86727]
[1723818621932,1.5,2585.9,2585.8,7.73454]
[1723818622129,1.5,2586.4,2585.8,3.86727]
[1723818622305,1.5,2586.4,2585.9,3.86702]
[1723818622505,1.5,2586.4,2586.0,3.86694]
[1723818622705,1.5,2586.4,2586.1,3.86681]
[1723818622706,2.268607,2586.4,2586.1,3.86681]
[1723818623015,1.5,2586.4,2586.0,3.86694]
[1723818623329,1.58218861,2586.4,2585.9,3.86702]
[1723818623515,0.54484186,2586.3,2586.0,3.86696]
[1723818623717,1.5,2586.4,2585.8,3.86714]
[1723818623718,1.58218861,2586.4,2585.8,3.86714]
[1723818624054,1.58218861,2586.4,2585.6,3.86749]
[1723818624055,1.5,2586.0,2585.6,3.86748]
[1723818624201,0.08218861,2585.9,2585.6,3.86746]
[1723818624543,0.08218861,2585.9,2585.6,3.86754]
[1723818624920,1.5,2586.0,2585.8,3.86717]
[1723818625907,1.5,2586.0,2585.9,3.86712]
[1723818626113,1.5,2586.0,2585.8,3.86717]
[1723818626353,1.5,2585.8,2585.3,3.86798]
[1723818626556,1.5,2585.8,2585.4,3.86777]
[1723818626849,1.5,2586.1,2585.9,3.86709]
[1723818627050,1.5,2586.1,2585.4,0.40288604]
[1723818627253,1.5,2586.1,2586.0,7.73394]
[1723818627455,1.5,2586.1,2586.0,3.86697]
[1723818627638,1.5,2586.1,2585.8,7.73434]
[1723818627837,1.5,2586.1,2585.9,3.86709]
[1723818628038,1.5,2586.1,2586.0,7.73394]
[1723818628423,1.5,2586.1,2586.0,3.86697]
[1723818628630,1.5,2586.1,2585.6,3.86744]
[1723818628833,2.312,2586.2,2585.4,4.27067604]
[1723818628834,1.5,2585.8,2585.4,4.27067604]
[1723818629039,1.5,2585.8,2585.6,3.86752]
[1723818629220,1.5,2585.8,2585.6,3.86747]
[1723818629556,1.5,2585.8,2585.2,3.0]
[1723818629557,1.5,2585.8,2585.7,3.86742]
[1723818629759,1.5,2585.8,2585.5,3.86759]
[1723818630145,1.5,2585.8,2585.7,3.86742]
[1723818630660,1.58807802,2587.7,2586.0,3.86697]
[1723818630661,1.5,2586.1,2586.0,3.86697]
[1723818631021,1.5,2586.1,2585.9,3.86701]
[1723818631022,2.2684,2586.0,2585.9,3.86701]
[1723818631235,1.5,2586.1,2586.0,3.86697]
[1723818631451,2.2684,2586.4,2585.5,2.77030556]
[1723818631624,2.2684,2586.4,2586.3,3.86652]
[1723818631818,2.2684,2586.4,2586.1,7.73351]
[1723818632022,0.37684,2586.3,2586.1,3.86681]
[1723818632259,1.5,2586.2,2585.9,3.86701]
[1723818632461,0.37684,2586.3,2585.5,4.27083556]
[1723818632462,3.7593,2585.9,2585.5,4.27083556]
[1723818632662,3.7593,2585.9,2585.7,3.8674]
[1723818633236,3.7593,2585.9,2585.5,3.8676]
[1723818633562,1.5,2585.6,2585.5,3.8676]
[1723818633760,1.5,2585.6,2585.3,3.86793]
[1723818633761,1.5,2585.6,2585.4,3.86783]
[1723818634562,1.5,2585.6,2585.4,3.86778]
[1723818635320,1.5,2585.6,2585.5,7.73544]
[1723818635563,3.7593,2585.9,2585.7,3.86734]
[1723818635770,3.7593,2585.9,2585.8,3.86727]
[1723818636226,3.7593,2585.9,2585.7,3.86733]
[1723818636622,3.7593,2585.9,2585.5,4.41763]
[1723818636957,4.13523,2585.9,2585.7,3.86732]
[1723818637158,4.13523,2585.9,2585.8,3.86727]
[1723818637338,3.7593,2585.9,2585.6,3.86747]
[1723818637545,3.7593,2585.9,2585.8,3.86727]
[1723818637940,3.7593,2585.9,2585.6,3.86743]
[1723818638431,4.13523,2585.9,2585.6,7.73492]
[1723818638891,1.5,2585.6,2585.4,3.86778]
[1723818639176,1.5,2585.6,2584.8,32.05]
[1723818639177,1.5,2585.6,2585.5,7.73544]
[1723818639337,1.5,2586.0,2585.8,3.86727]
[1723818639532,1.5,2586.0,2585.6,3.86743]
[1723818639732,1.5,2586.0,2585.9,3.86712]
[1723818639970,5.378,2587.0,2585.1,4.91328]
[1723818639971,1.5,2586.3,2586.0,3.8669]
[1723818640172,1.5,2586.3,2586.2,3.86667]
[1723818640611,1.5,2586.3,2586.1,3.86673]
[1723818640814,1.5,2586.6,2586.2,3.86667]
[1723818640977,1.5,2586.9,2586.5,7.73244]
[1723818641316,1.5,2587.2,2587.1,3.86533]
[1723818641515,1.5,2587.2,2587.1,7.73066]
[1723818641809,1.5,2587.6,2587.5,3.86473]
[1723818642326,1.5,2587.3,2586.9,3.86552]
[1723818642469,1.5,2587.3,2587.1,3.86522]
[1723818642799,1.5,2587.3,2586.7,3.0]
[1723818642800,1.5,2587.3,2587.2,3.86518]
[1723818643111,1.5,2587.3,2587.0,3.8654]
[1723818643266,3.9028,2587.3,2586.9,3.86561]
[1723818643462,3.9028,2587.3,2586.8,3.86569]
[1723818643712,4.76175161,2587.3,2586.8,3.86569]
[1723818643911,0.08218861,2587.2,2587.0,3.8654]
[1723818644092,1.5,2587.0,2586.9,3.8655]
[1723818644268,1.5,2587.0,2586.6,0.55]
[1723818644269,2.4028,2587.3,2586.7,3.86589]
[1723818644621,1.5,2587.4,2587.2,3.86518]
[1723818644907,1.5,2587.4,2587.3,3.86503]
[1723818645266,1.5,2587.4,2587.3,7.73006]
[1723818645477,1.5,2587.7,2587.6,3.86458]
[1723818645714,1.5,2588.0,2587.8,3.86427]
[1723818645896,1.5,2588.0,2587.9,7.72826]
[1723818646096,1.5,2588.4,2588.1,3.86369]
[1723818646509,1.5,2588.4,2587.9,3.86404]
[1723818646816,1.5,2588.4,2588.2,3.86368]
[1723818647166,1.5,2588.1,2587.8,3.86423]
[1723818647366,1.5,2588.1,2587.8,3.8642]
[1723818647571,1.5,2588.1,2588.0,3.86398]
[1723818647999,2.4028,2588.6,2588.0,0.55]
[1723818648210,2.4028,2588.6,2588.3,3.86346]
[1723818648586,1.5,2588.4,2588.0,3.86395]
[1723818648787,1.5,2588.4,2587.2,6.5398]
[1723818649123,2.4028,2588.6,2588.5,3.86324]
[1723818649417,1.5,2588.7,2588.6,3.86309]
[1723818649817,1.5,2588.7,2588.4,3.86335]
[1723818650116,1.87962,2588.7,2588.6,3.86309]
[1723818650325,1.5,2588.7,2588.6,3.86309]
[1723818651016,1.5,2588.7,2588.4,3.86329]
[1723818651787,1.5,2588.7,2588.2,3.86361]
[1723818651987,1.5,2588.7,2587.9,6.86409]
[1723818651988,1.87962,2588.7,2587.9,3.0]
[1723818652195,1.87962,2588.7,2587.6,35.0]
[1723818652196,2.2962,2588.6,2588.0,0.55]
[1723818652385,2.2962,2588.6,2588.2,3.86361]
[1723818652685,0.37962,2588.5,2588.2,3.86361]
[1723818653214,0.37962,2588.5,2588.3,3.8635]
[1723818653415,1.5,2588.1,2587.6,7.45]
[1723818653577,1.5,2587.8,2587.7,3.86428]
[1723818653772,1.5,2587.8,2587.5,7.72923]
[1723818654025,1.5,2587.8,2587.3,7.45]
[1723818654315,1.5,2587.8,2587.7,3.86443]
[1723818654822,3.7962,2588.1,2587.9,7.72814]
[1723818655021,3.7962,2588.1,2588.0,3.86398]
[1723818655175,3.86324,2588.5,2588.4,3.86339]
[1723818655176,1.5,2588.5,2588.4,3.86339]
[1723818656813,1.5,2588.5,2588.3,7.72702]
[1723818656976,1.5,2588.5,2588.3,3.86345]
[1723818657404,1.5,2588.5,2588.4,3.86339]
[1723818657405,1.89376,2588.5,2588.4,3.86339]
[1723818657587,1.5,2588.5,2588.3,3.86345]
[1723818657912,1.5,2588.5,2588.4,3.86339]
[1723818659815,1.5,2588.5,2588.3,3.86345]
[1723818660390,1.89376,2588.5,2587.9,3.86403]
[1723818660691,1.89376,2588.5,2588.3,3.86353]
[1723818660920,1.5,2588.5,2588.3,3.86353]
[1723818661287,1.5,2588.5,2587.8,7.45]
[1723818661727,3.86237,2589.1,2587.8,7.45]
[1723818661728,1.5,2588.8,2588.4,3.86339]
[1723818662103,1.5,2588.8,2588.6,3.86308]
[1723818662519,1.5,2588.8,2588.7,3.86294]
[1723818662793,1.5,2588.8,2588.7,7.72588]
[1723818662995,1.5,2588.8,2588.7,8.27588]
[1723818663594,1.5,2589.2,2589.1,3.86234]
[1723818663793,1.5,2589.2,2588.7,1.377588]
[1723818663794,1.5,2589.2,2588.9,3.8625]
[1723818664231,1.5,2589.2,2589.0,3.86236]
[1723818664391,1.5,2589.2,2588.6,27.24]
[1723818664392,1.5,2588.9,2588.6,27.24]
[1723818664590,2.2793,2588.8,2588.6,27.24]
[1723818664908,6.14215,2588.8,2588.6,27.24]
[1723818665236,2.2793,2588.8,2588.6,27.24]
[1723818665477,1.5,2588.9,2588.7,3.86282]
[1723818665733,1.5,2588.9,2588.8,3.86279]
[1723818665892,1.5,2588.9,2588.8,7.72558]
[1723818666097,1.5,2588.9,2588.8,8.27558]
[1723818666293,1.5,2589.2,2589.1,3.86234]
[1723818666594,1.5,2589.2,2589.0,3.86245]
[1723818666794,3.86175,2589.5,2589.2,3.86215]
[1723818666795,1.5,2589.5,2589.2,3.86215]
[1723818666999,1.5,2589.5,2589.3,3.86197]
[1723818667223,1.5,2589.5,2589.3,3.86195]
[1723818667644,1.5,2589.8,2589.7,7.7229]
[1723818667854,3.9863406,2590.5,2590.1,3.86085]
[1723818667855,1.5,2590.2,2590.1,3.86085]
[1723818668141,2.2604,2590.4,2590.2,3.86066]
[1723818668310,2.2604,2590.4,2590.3,3.86055]
[1723818668647,1.6260006,2590.5,2590.2,3.86061]
[1723818668845,1.5,2590.1,2590.0,3.86092]
[1723818668996,1.5,2590.1,2589.9,3.86112]
[1723818669341,1.5,2590.1,2590.0,3.861]
[1723818669545,1.5,2590.1,2590.0,0.55]
[1723818669699,1.5,2590.1,2589.8,3.86128]
[1723818669901,1.5,2590.1,2589.8,3.86121]
[1723818670132,1.5,2590.1,2590.0,3.861]
[1723818670314,1.5,2590.1,2590.0,4.411]
[1723818670546,1.5,2590.1,2589.7,11.31137]
[1723818670742,1.5,2589.8,2589.7,11.31137]
[1723818670957,1.5,2589.8,2589.7,4.41137]
[1723818671271,1.5,2589.8,2589.6,19.79]
[1723818672236,1.5,2589.8,2589.6,23.65157]
[1723818672787,1.5,2589.8,2589.7,3.86145]
[1723818673083,1.5,2589.8,2589.7,0.55]
[1723818673291,1.5,2589.8,2589.6,19.79]
[1723818673581,2.850025,2589.7,2589.6,19.79]
[1723818673872,1.5,2589.8,2589.6,23.65158]
[1723818674042,1.5,2590.4,2589.9,3.86102]
[1723818674245,1.5,2590.4,2590.0,0.07721051]
[1723818674677,1.5,2590.4,2590.1,3.86083]
[1723818674977,0.1260006,2590.5,2590.4,7.7208]
[1723818675199,0.1260006,2590.5,2590.4,11.2708]
[1723818675329,0.1260006,2590.5,2590.4,21.3481]
[1723818675540,1.5,2591.4,2591.0,3.8594]
[1723818675771,1.5,2591.4,2590.4,8.04131]
[1723818675772,1.5,2591.0,2590.8,3.85975]
[1723818675983,1.5,2591.0,2590.9,7.71932]
[1723818676164,1.5,2591.0,2590.9,5.181592]
[1723818676373,1.5,2591.0,2590.9,4.40966]
[1723818677062,1.5,2591.0,2590.9,0.55]
[1723818677264,1.5,2591.3,2590.9,4.40952]
[1723818677468,1.5,2591.3,2591.0,3.85949]
[1723818677669,1.5,2591.0,2590.9,4.40966]
[1723818677978,2.3016,2591.5,2590.6,6.86002]
[1723818677979,1.5,2590.7,2590.6,6.86002]
[1723818678190,1.5,2590.7,2589.0,5.408431]
[1723818678191,1.5,2590.3,2590.0,2.2716]
[1723818678389,2.495,2590.9,2590.4,3.86029]
[1723818678390,1.5,2590.6,2590.4,3.86029]
[1723818678588,1.5,2590.6,2590.2,3.86057]
[1723818678887,1.5,2590.6,2590.5,3.86025]
[1723818679094,1.5,2590.6,2590.2,3.86061]
[1723818679263,1.5,2590.6,2590.5,3.86025]
[1723818679588,2.495,2590.9,2590.2,3.86061]
[1723818679589,1.5,2590.3,2590.2,3.86061]
[1723818679791,1.5,2590.3,2590.0,3.8609]
[1723818679995,3.9801,2590.3,2590.0,3.8609]
[1723818680152,1.5,2590.3,2590.2,3.8607]
[1723818680351,1.5,2590.3,2590.2,7.7214]
[1723818681062,1.5,2590.3,2590.2,3.8607]
[1723818681254,1.5,2590.3,2590.1,7.72159]
[1723818681454,1.5,2590.3,2590.2,3.8607]
[1723818681845,1.5,2590.7,2590.6,3.8601]
[1723818681965,1.5,2590.7,2590.6,8.2702]
[1723818682291,1.5,2591.0,2590.9,3.85966]
[1723818682492,1.5,2591.0,2590.8,3.85979]
[1723818682789,1.5,2590.7,2590.6,0.55]
[1723818682993,1.5,2590.7,2590.5,4.41016]
[1723818683193,1.5,2590.7,2590.6,7.7202]
[1723818683399,1.5,2590.7,2590.6,9.09722]
[1723818683594,1.5,2590.7,2590.6,0.55]
[1723818683760,1.5,2590.7,2590.5,3.86011]
[1723818683959,1.5,2590.7,2590.6,3.8601]
[1723818684157,1.5,2590.7,2590.5,3.86011]
[1723818684462,1.5,2590.7,2590.6,3.8601]
[1723818684953,2.3038,2591.3,2590.6,0.827021]
[1723818685158,1.5,2591.4,2591.0,3.85951]
[1723818685367,1.5,2591.4,2591.1,0.55]
[1723818685605,1.5,2591.4,2591.0,3.85943]
[1723818685813,1.5,2591.4,2591.3,3.85906]
[1723818686108,3.8086,2591.7,2591.3,3.85901]
[1723818686338,3.8086,2591.7,2591.4,4.40889]
[1723818686650,3.8086,2591.7,2591.5,3.85872]
[1723818686998,1.5,2591.4,2591.3,3.85906]
[1723818687199,1.5,2591.4,2591.3,8.489945]
[1723818687430,1.5,2591.4,2591.3,8.26812]
[1723818688009,1.5,2591.7,2591.5,3.85866]
[1723818688214,1.5,2591.7,2591.6,4.40862]
[1723818689128,1.5,2591.7,2591.6,8.26724]
[1723818689329,1.5,2592.0,2591.8,3.85832]
[1723818689645,1.5,2592.0,2591.4,27.24]
[1723818689646,1.5,2591.7,2591.4,27.24]
[1723818689950,3.85869,2591.6,2591.4,27.24]
[1723818690129,1.5,2591.1,2590.8,7.45]
[1723818690300,1.24341861,2591.6,2590.3,7.45]
[1723818690301,1.5,2590.4,2590.3,7.45]
[1723818690504,1.5,2590.4,2590.3,0.24488]
[1723818690834,1.5,2590.4,2590.2,3.86062]
[1723818691144,1.5,2590.1,2590.0,4.24696]
[1723818691457,1.5,2590.1,2590.0,7.72187]
[1723818691652,2.395,2591.0,2590.0,7.72187]
[1723818691653,1.5,2590.5,2590.4,3.8604]
[1723818691826,1.5,2590.5,2590.0,0.772187]
[1723818691827,1.5,2590.5,2590.2,3.86059]
[1723818692153,1.5,2590.5,2590.4,7.7208]
[1723818692330,3.895,2591.0,2590.7,3.85983]
[1723818692650,3.895,2591.0,2590.2,3.8606]
[1723818692651,1.5,2590.7,2590.6,3.8601]
[1723818692995,1.5,2590.7,2590.5,3.86024]
[1723818693228,1.5,2590.1,2589.6,2.3714]
[1723818693475,1.5,2589.6,2589.5,3.86174]
[1723818693976,1.5,2589.6,2589.1,4.25938172]
[1723818693977,1.5,2589.6,2589.1,0.39709172]
[1723818694130,1.5,2589.9,2589.8,3.8613]
[1723818694326,2.4773,2590.2,2589.1,4.3365608]
[1723818694327,1.5,2589.4,2589.1,0.39709172]
[1723818694574,7.72438,2589.2,2589.1,0.39709172]
[1723818694737,0.08218861,2589.3,2588.3,3.86343]
[1723818694738,1.5,2588.6,2588.3,3.86343]
[1723818694943,1.5,2588.3,2588.1,3.86373]
[1723818695269,2.4237,2589.1,2587.9,3.86406]
[1723818695270,1.5,2588.0,2587.9,3.86406]
[1723818695500,1.5,2588.0,2587.7,3.86432]
[1723818695648,1.5,2588.0,2587.7,0.772899]
[1723818695978,6.16622,2588.4,2587.5,3.86469]
[1723818695979,1.5,2587.6,2587.5,3.86469]
[1723818696330,1.5,2587.6,2587.5,7.72931]
[1723818696680,1.5,2588.0,2587.7,3.8644]
[1723818697051,1.5,2587.7,2587.3,3.86497]
[1723818697284,1.5,2587.4,2587.3,3.86497]
[1723818698340,3.86344,2588.4,2586.7,38.86589]
[1723818698341,1.5,2587.8,2587.5,3.86473]
[1723818698557,1.5,2587.8,2587.3,3.86492]
[1723818698758,1.5,2587.4,2587.1,3.86522]
[1723818699065,1.5,2587.1,2586.9,3.86551]
[1723818699574,0.08218861,2587.3,2586.5,3.86621]
[1723818699575,1.5,2586.6,2586.5,3.86621]
[1723818699883,1.5,2586.6,2586.4,3.86627]
[1723818700026,1.5,2586.6,2586.5,4.252847]
[1723818700531,1.5,2586.6,2586.4,3.86627]
[1723818701169,1.5,2586.6,2586.5,3.86622]
[1723818701369,2.4996,2587.4,2585.9,3.86709]
[1723818701370,1.5,2586.9,2586.7,3.86581]
[1723818701617,1.5,2586.9,2586.8,4.252361]
[1723818701918,1.5,2586.9,2586.8,8.118141]
[1723818702065,1.5,2586.9,2586.8,7.73156]
[1723818702268,1.5,2586.9,2586.8,4.41578]
[1723818702471,1.5,2586.9,2586.8,8.28156]
[1723818703129,3.0,2588.0,2587.6,3.86458]
[1723818703130,1.5,2587.7,2587.6,3.86458]
[1723818703613,1.5,2587.7,2587.5,3.86472]
[1723818703970,1.5,2587.4,2587.3,3.865]
[1723818705219,1.5,2587.4,2587.3,7.73003]
[1723818705378,1.5,2587.4,2587.3,8.28003]
[1723818707722,3.7986,2588.0,2587.3,0.55]
[1723818707922,3.7986,2588.0,2587.9,7.72826]
[1723818707923,1.5,2588.0,2587.9,7.72826]
[1723818708618,1.5,2588.0,2587.9,8.27826]
[1723818708855,1.5,2588.0,2587.6,3.0]
[1723818709161,4.49771509,2592.7,2587.3,35.0]
[1723818709162,1.5,2587.4,2587.3,3.86495]
[1723818709329,1.5,2587.4,2587.2,3.86516]
[1723818709661,1.5,2587.4,2587.1,3.8652]
[1723818709956,1.5,2587.4,2587.0,7.45]
[1723818710163,1.5,2587.4,2587.0,3.110555]
[1723818710457,1.5,2587.4,2587.2,3.86508]
[1723818711218,3.86444,2587.7,2587.0,3.86539]
[1723818711219,1.5,2587.1,2587.0,3.86539]
[1723818711418,1.5,2587.1,2587.0,4.41539]
[1723818711631,3.86444,2587.7,2587.0,4.41539]
[1723818711632,1.5,2587.7,2587.6,3.86458]
[1723818712034,1.5,2587.7,2587.6,7.72916]
[1723818712218,1.5,2587.7,2587.6,8.27916]
[1723818712411,1.5,2587.7,2587.6,3.827916]
[1723818712614,2.4996,2588.3,2587.2,6.8651]
[1723818712615,1.5,2587.3,2587.2,6.8651]
[1723818712848,1.5,2587.3,2587.1,11.31524]
[1723818713054,1.5,2587.3,2587.2,3.86518]
[1723818713584,1.5,2587.3,2587.1,11.31524]
[1723818713720,1.5,2587.3,2587.2,3.86518]
[1723818713922,1.5,2587.3,2587.2,6.975698]
[1723818714224,1.5,2587.3,2587.2,3.86518]
[1723818715245,1.5,2587.3,2587.2,8.28036]
[1723818715781,1.5,2587.6,2587.5,7.72946]
[1723818715984,1.5,2587.6,2587.5,8.27946]
[1723818716139,1.5,2587.6,2587.5,9.107406]
[1723818716491,1.5,2587.6,2587.5,7.692676]
[1723818716642,1.5,2587.6,2587.3,3.86491]
[1723818716844,1.5,2587.6,2587.4,3.0]
[1723818717180,1.5,2587.6,2587.5,3.86473]
[1723818717347,1.5,2587.6,2587.3,3.86492]
[1723818717661,1.5,2587.6,2587.4,6.86485]
[1723818717988,1.5,2587.6,2587.4,3.0]
[1723818718291,1.5,2587.6,2587.3,3.86492]
[1723818718486,1.5,2587.2,2587.1,7.45]
[1723818719071,1.5,2587.2,2587.1,15.18066]
[1723818719662,1.5,2587.6,2587.1,7.45]
[1723818719861,1.5,2587.6,2587.5,3.86473]
[1723818720064,1.5,2587.6,2587.5,12.14419]
[1723818720438,1.5,2587.6,2587.5,4.41473]
[1723818720683,1.5,2587.6,2587.3,3.86497]
[1723818720843,3.0,2588.7,2587.1,7.45]
[1723818720844,1.5,2587.3,2587.1,7.45]
[1723818721365,1.5,2587.7,2587.6,7.72916]
[1723818721683,1.5,2588.3,2588.2,3.86368]
[1723818721995,1.5,2588.3,2588.0,3.86388]
[1723818722300,2.3561,2588.5,2588.2,7.72736]
[1723818722498,1.5,2588.6,2588.5,3.86324]
[1723818722797,1.5,2588.6,2588.5,7.72648]
[1723818722946,1.5,2588.6,2588.5,3.86324]
[1723818723149,1.5,2588.6,2588.3,3.86346]
[1723818723461,1.5,2588.6,2587.8,3.8642]
[1723818723462,1.5,2587.9,2587.8,3.8642]
[1723818723670,1.5,2587.9,2587.6,3.86446]
[1723818723880,1.5,2587.9,2587.7,3.86442]
[1723818724198,3.86252,2589.0,2587.4,3.86479]
[1723818724199,2.3385,2587.5,2587.4,3.86479]
[1723818724342,1.5,2587.6,2587.4,3.86479]
[1723818725247,1.5,2587.6,2587.5,3.86473]
[1723818725682,1.5,2587.6,2587.5,7.72946]
[1723818726059,2.3417,2588.2,2587.8,7.72856]
[1723818726060,1.5,2587.9,2587.8,7.72856]
[1723818726464,1.5,2587.9,2587.8,13.302151]
[1723818726769,1.5,2588.2,2588.1,7.72766]
[1723818726971,1.5,2588.2,2588.1,8.27766]
[1723818727592,1.5,2587.9,2587.5,0.75548427]